[Event "Titled Tuesday Blitz January 31 Early 2023"]
[White "Martynov, Pavel"]
[Black "Talibov, Shiroghlan"]
[WhiteFideId "4101260"]
[BlackFideId "13429078"]
[WhiteElo "2414"]
[BlackElo "2359"]
[Result "0-1"]
[Round "04"]
[TimeControl "180+2"]
[Date "2023.01.31"]
[WhiteClock "0:00:02"]
[BlackClock "0:00:05"]

1. e4 {[%clk 0:03:00]}  d6 {[%clk 0:02:53]} 2. d4 {[%clk 0:03:00]}  Nf6 {[%clk 0:02:53]} 3. Nc3 {[%clk 0:03:00]}  g6 {[%clk 0:02:50]} 4. g3 {[%clk 0:03:01]}  Bg7 {[%clk 0:02:50]} 5. Bg2 {[%clk 0:03:01]}  O-O {[%clk 0:02:50]} 6. Nge2 {[%clk 0:03:02]}  Nbd7 {[%clk 0:02:49]} 7. O-O {[%clk 0:03:03]}  c5 {[%clk 0:02:46]} 8. h3 {[%clk 0:03:01]}  a6 {[%clk 0:02:43]} 9. Be3 {[%clk 0:02:56]}  cxd4 {[%clk 0:02:38]} 10. Nxd4 {[%clk 0:02:54]}  Qc7 {[%clk 0:02:32]} 11. f4 {[%clk 0:02:42]}  e5 {[%clk 0:02:28]} 12. Nb3 {[%clk 0:02:40]}  b5 {[%clk 0:02:23]} 13. a3 {[%clk 0:02:37]}  Bb7 {[%clk 0:02:22]} 14. Qd2 {[%clk 0:02:23]}  Rfd8 {[%clk 0:02:20]} 15. Rad1 {[%clk 0:02:22]}  Nc5 {[%clk 0:02:20]} 16. Nxc5 {[%clk 0:02:02]}  dxc5 {[%clk 0:02:21]} 17. Qf2 {[%clk 0:02:02]}  b4 {[%clk 0:02:04]} 18. Nd5 {[%clk 0:01:57]}  Nxd5 {[%clk 0:01:44]} 19. exd5 {[%clk 0:01:57]}  exf4 {[%clk 0:01:40]} 20. Bxf4 {[%clk 0:01:51]}  Qd7 {[%clk 0:01:38]} 21. Qxc5 {[%clk 0:01:18]}  Rac8 {[%clk 0:01:33]} 22. Qxb4 {[%clk 0:01:17]}  Rxc2 {[%clk 0:01:33]} 23. Rd2 {[%clk 0:01:13]}  Rxd2 {[%clk 0:01:28]} 24. Qxd2 {[%clk 0:01:12]}  Bxd5 {[%clk 0:01:22]} 25. Rd1 {[%clk 0:01:08]}  Be6 {[%clk 0:01:21]} 26. Qxd7 {[%clk 0:01:05]}  Rxd7 {[%clk 0:01:21]} 27. Rxd7 {[%clk 0:01:05]}  Bxd7 {[%clk 0:01:22]} 28. Bc1 {[%clk 0:00:38]}  Bd4+ {[%clk 0:01:19]} 29. Kh2 {[%clk 0:00:36]}  Kf8 {[%clk 0:01:16]} 30. b4 {[%clk 0:00:34]}  Ke7 {[%clk 0:01:13]} 31. Bb7 {[%clk 0:00:33]}  Bb5 {[%clk 0:01:06]} 32. a4 {[%clk 0:00:34]}  Bc4 {[%clk 0:01:00]} 33. Bc6 {[%clk 0:00:31]}  Kd6 {[%clk 0:00:57]} 34. Be8 {[%clk 0:00:31]}  Bc3 {[%clk 0:00:48]} 35. b5 {[%clk 0:00:31]}  axb5 {[%clk 0:00:46]} 36. axb5 {[%clk 0:00:30]}  Kc5 {[%clk 0:00:46]} 37. Ba3+ {[%clk 0:00:29]}  Kb6 {[%clk 0:00:45]} 38. Bd6 {[%clk 0:00:22]}  f6 {[%clk 0:00:43]} 39. Be7 {[%clk 0:00:15]}  Bxb5 {[%clk 0:00:43]} 40. Bd8+ {[%clk 0:00:15]}  Kc5 {[%clk 0:00:41]} 41. Be7+ {[%clk 0:00:16]}  Kb6 {[%clk 0:00:40]} 42. Bd8+ {[%clk 0:00:16]}  Ka6 {[%clk 0:00:41]} 43. Bf7 {[%clk 0:00:16]}  Bd3 {[%clk 0:00:32]} 44. g4 {[%clk 0:00:13]}  Kb5 {[%clk 0:00:30]} 45. Bg8 {[%clk 0:00:12]}  h6 {[%clk 0:00:27]} 46. Be7 {[%clk 0:00:10]}  Kc6 {[%clk 0:00:20]} 47. Bf8 {[%clk 0:00:10]}  Be5+ {[%clk 0:00:17]} 48. Kg1 {[%clk 0:00:08]}  Bf4 {[%clk 0:00:15]} 49. Bg7 {[%clk 0:00:08]}  Bg5 {[%clk 0:00:13]} 50. h4 {[%clk 0:00:08]}  Bxh4 {[%clk 0:00:12]} 51. Bxh6 {[%clk 0:00:08]}  Kd7 {[%clk 0:00:10]} 52. Kg2 {[%clk 0:00:06]}  Ke7 {[%clk 0:00:09]} 53. Kh3 {[%clk 0:00:05]}  Be1 {[%clk 0:00:09]} 54. Be3 {[%clk 0:00:05]}  Bf1+ {[%clk 0:00:09]} 55. Kh2 {[%clk 0:00:04]}  Kf8 {[%clk 0:00:09]} 56. Bd5 {[%clk 0:00:04]}  Kg7 {[%clk 0:00:09]} 57. g5 {[%clk 0:00:01]}  f5 {[%clk 0:00:07]} 58. Bd4+ {[%clk 0:00:02]}  Kh7 {[%clk 0:00:08]} 59. Bf6 {[%clk 0:00:02]}  Bd3 {[%clk 0:00:05]} 0-1


[Site "https://www.chess.com"]

[Event "Titled Tuesday Blitz January 31 Early 2023"]
[White "Priasmoro, Novendra"]
[Black "Rohith Krishna S"]
[WhiteFideId "7105029"]
[BlackFideId "46617051"]
[WhiteElo "2504"]
[BlackElo "2385"]
[Result "1-0"]
[Round "04"]
[TimeControl "180+2"]
[Date "2023.01.31"]
[WhiteClock "0:01:15"]
[BlackClock "0:00:26"]

1. e4 {[%clk 0:03:00]}  e5 {[%clk 0:02:56]} 2. Nf3 {[%clk 0:03:00]}  Nc6 {[%clk 0:02:53]} 3. Bb5 {[%clk 0:03:01]}  a6 {[%clk 0:02:47]} 4. Ba4 {[%clk 0:03:00]}  Nf6 {[%clk 0:02:44]} 5. O-O {[%clk 0:02:58]}  Be7 {[%clk 0:02:36]} 6. Re1 {[%clk 0:02:55]}  b5 {[%clk 0:02:29]} 7. Bb3 {[%clk 0:02:55]}  d6 {[%clk 0:02:20]} 8. c3 {[%clk 0:02:53]}  O-O {[%clk 0:02:16]} 9. h3 {[%clk 0:02:53]}  Na5 {[%clk 0:02:11]} 10. Bc2 {[%clk 0:02:53]}  c5 {[%clk 0:02:12]} 11. d3 {[%clk 0:02:54]}  Qc7 {[%clk 0:01:55]} 12. Nbd2 {[%clk 0:02:54]}  Rd8 {[%clk 0:01:54]} 13. Nf1 {[%clk 0:02:54]}  Bf8 {[%clk 0:01:54]} 14. Ng3 {[%clk 0:02:52]}  g6 {[%clk 0:01:54]} 15. Bg5 {[%clk 0:02:42]}  Bg7 {[%clk 0:01:50]} 16. Qc1 {[%clk 0:02:42]}  Nc6 {[%clk 0:01:49]} 17. Bh6 {[%clk 0:02:37]}  Bh8 {[%clk 0:01:49]} 18. Qg5 {[%clk 0:02:36]}  d5 {[%clk 0:01:45]} 19. exd5 {[%clk 0:02:27]}  Nxd5 {[%clk 0:01:45]} 20. Ne4 {[%clk 0:02:24]}  f6 {[%clk 0:01:36]} 21. Qh4 {[%clk 0:02:21]}  Nce7 {[%clk 0:01:36]} 22. g4 {[%clk 0:02:18]}  c4 {[%clk 0:01:32]} 23. dxc4 {[%clk 0:02:17]}  bxc4 {[%clk 0:01:33]} 24. Rad1 {[%clk 0:02:17]}  Bb7 {[%clk 0:01:32]} 25. b3 {[%clk 0:02:11]}  Qc6 {[%clk 0:01:25]} 26. bxc4 {[%clk 0:02:09]}  Nxc3 {[%clk 0:01:25]} 27. Rxd8+ {[%clk 0:01:56]}  Rxd8 {[%clk 0:01:24]} 28. Nxe5 {[%clk 0:01:57]}  fxe5 {[%clk 0:01:24]} 29. Qxe7 {[%clk 0:01:56]}  Re8 {[%clk 0:01:18]} 30. Qb4 {[%clk 0:01:48]}  Nb5 {[%clk 0:00:48]} 31. Ba4 {[%clk 0:01:31]}  g5 {[%clk 0:00:45]} 32. cxb5 {[%clk 0:01:22]}  Qxh6 {[%clk 0:00:44]} 33. bxa6 {[%clk 0:01:22]}  Qxh3 {[%clk 0:00:26]} 34. Qb3+ {[%clk 0:01:16]}  Kf8 {[%clk 0:00:26]} 35. Qxh3 {[%clk 0:01:15]} 1-0


[Site "https://www.chess.com"]

[Event "Titled Tuesday Blitz January 31 Early 2023"]
[White "Wong, Yinn Long"]
[Black "Sukandar, Irine Kharisma"]
[WhiteFideId "5707684"]
[BlackFideId "7101937"]
[WhiteElo "2371"]
[BlackElo "2390"]
[Result "1-0"]
[Round "04"]
[TimeControl "180+2"]
[Date "2023.01.31"]
[WhiteClock "0:00:16"]
[BlackClock "0:00:09"]

1. e4 {[%clk 0:03:00]}  e5 {[%clk 0:02:58]} 2. Nf3 {[%clk 0:03:01]}  Nc6 {[%clk 0:02:58]} 3. Bc4 {[%clk 0:03:00]}  Bc5 {[%clk 0:02:57]} 4. c3 {[%clk 0:03:01]}  Nf6 {[%clk 0:02:56]} 5. d3 {[%clk 0:03:01]}  d6 {[%clk 0:02:53]} 6. O-O {[%clk 0:02:55]}  a6 {[%clk 0:02:46]} 7. Bb3 {[%clk 0:02:53]}  O-O {[%clk 0:02:41]} 8. h3 {[%clk 0:02:52]}  Be6 {[%clk 0:02:38]} 9. Re1 {[%clk 0:02:21]}  h6 {[%clk 0:02:35]} 10. Bc2 {[%clk 0:02:20]}  Bb6 {[%clk 0:02:24]} 11. d4 {[%clk 0:02:19]}  exd4 {[%clk 0:02:18]} 12. cxd4 {[%clk 0:02:20]}  Nb4 {[%clk 0:02:15]} 13. Nc3 {[%clk 0:02:20]}  Nxc2 {[%clk 0:02:10]} 14. Qxc2 {[%clk 0:02:21]}  d5 {[%clk 0:02:10]} 15. e5 {[%clk 0:02:20]}  Ne4 {[%clk 0:02:08]} 16. Nxe4 {[%clk 0:02:18]}  dxe4 {[%clk 0:02:08]} 17. Qxe4 {[%clk 0:02:19]}  Bd5 {[%clk 0:02:07]} 18. Qg4 {[%clk 0:02:20]}  Bxf3 {[%clk 0:02:06]} 19. Qxf3 {[%clk 0:02:18]}  Qxd4 {[%clk 0:02:00]} 20. Be3 {[%clk 0:02:11]}  Qxb2 {[%clk 0:02:00]} 21. Rab1 {[%clk 0:02:05]}  Qxa2 {[%clk 0:01:59]} 22. Bxb6 {[%clk 0:02:05]}  cxb6 {[%clk 0:01:58]} 23. Rxb6 {[%clk 0:02:04]}  Rae8 {[%clk 0:01:48]} 24. Qg3 {[%clk 0:01:50]}  Qa5 {[%clk 0:01:44]} 25. Rbb1 {[%clk 0:01:50]}  Re6 {[%clk 0:01:36]} 26. Re3 {[%clk 0:01:48]}  b5 {[%clk 0:01:35]} 27. f4 {[%clk 0:01:46]}  Qa2 {[%clk 0:01:28]} 28. Rbe1 {[%clk 0:01:44]}  Qc2 {[%clk 0:01:23]} 29. Qf3 {[%clk 0:01:44]}  Rfe8 {[%clk 0:00:59]} 30. f5 {[%clk 0:01:39]}  R6e7 {[%clk 0:00:53]} 31. f6 {[%clk 0:01:28]}  Re6 {[%clk 0:00:51]} 32. Qf4 {[%clk 0:01:12]}  g5 {[%clk 0:00:44]} 33. Qd4 {[%clk 0:01:04]}  Qc4 {[%clk 0:00:39]} 34. Qd7 {[%clk 0:01:01]}  Qc5 {[%clk 0:00:36]} 35. Kh2 {[%clk 0:00:57]}  b4 {[%clk 0:00:30]} 36. Re4 {[%clk 0:00:27]}  b3 {[%clk 0:00:29]} 37. Qb7 {[%clk 0:00:26]}  Qc3 {[%clk 0:00:17]} 38. R1e3 {[%clk 0:00:25]}  Qc2 {[%clk 0:00:14]} 39. Rxb3 {[%clk 0:00:24]}  Rxe5 {[%clk 0:00:10]} 40. Rxe5 {[%clk 0:00:23]}  Rxe5 {[%clk 0:00:10]} 41. Qc8+ {[%clk 0:00:16]}  Kh7 {[%clk 0:00:09]} 42. Qxc2+ {[%clk 0:00:16]} 1-0


[Site "https://www.chess.com"]

[Event "Titled Tuesday Blitz January 31 Early 2023"]
[White "Sharapov, Evgeny"]
[Black "Averjanov, Alexey"]
[WhiteFideId "14103133"]
[BlackFideId "14109867"]
[WhiteElo "2375"]
[BlackElo "2399"]
[Result "1/2-1/2"]
[Round "04"]
[TimeControl "180+2"]
[Date "2023.01.31"]
[WhiteClock "0:01:47"]
[BlackClock "0:01:21"]

1. e4 {[%clk 0:03:00]}  c6 {[%clk 0:03:00]} 2. d4 {[%clk 0:02:59]}  d5 {[%clk 0:03:00]} 3. Nc3 {[%clk 0:02:59]}  dxe4 {[%clk 0:02:59]} 4. Nxe4 {[%clk 0:02:59]}  Bf5 {[%clk 0:02:59]} 5. Ng3 {[%clk 0:02:58]}  Bg6 {[%clk 0:03:00]} 6. h4 {[%clk 0:02:59]}  h6 {[%clk 0:02:59]} 7. Nf3 {[%clk 0:02:59]}  Nd7 {[%clk 0:02:59]} 8. h5 {[%clk 0:02:58]}  Bh7 {[%clk 0:02:59]} 9. Bd3 {[%clk 0:02:58]}  Bxd3 {[%clk 0:02:59]} 10. Qxd3 {[%clk 0:02:59]}  e6 {[%clk 0:02:59]} 11. Bd2 {[%clk 0:02:58]}  Ngf6 {[%clk 0:02:59]} 12. O-O-O {[%clk 0:02:58]}  Be7 {[%clk 0:02:59]} 13. Kb1 {[%clk 0:02:56]}  O-O {[%clk 0:02:59]} 14. Nf1 {[%clk 0:02:56]}  c5 {[%clk 0:02:59]} 15. g4 {[%clk 0:02:56]}  cxd4 {[%clk 0:02:57]} 16. g5 {[%clk 0:02:56]}  Nd5 {[%clk 0:02:56]} 17. gxh6 {[%clk 0:02:53]}  Qb6 {[%clk 0:02:51]} 18. Rg1 {[%clk 0:02:40]}  Bf6 {[%clk 0:02:45]} 19. Bg5 {[%clk 0:02:39]}  Nc3+ {[%clk 0:02:04]} 20. Ka1 {[%clk 0:02:32]}  Nxd1 {[%clk 0:01:56]} 21. Qxd1 {[%clk 0:02:26]}  Kh8 {[%clk 0:01:46]} 22. Bxf6 {[%clk 0:02:17]}  gxf6 {[%clk 0:01:45]} 23. Rg7 {[%clk 0:02:05]}  Rac8 {[%clk 0:01:27]} 24. Qd3 {[%clk 0:01:49]}  f5 {[%clk 0:01:26]} 25. Ng5 {[%clk 0:01:49]}  Ne5 {[%clk 0:01:21]} 26. Rh7+ {[%clk 0:01:45]}  Kg8 {[%clk 0:01:21]} 27. Rg7+ {[%clk 0:01:46]}  Kh8 {[%clk 0:01:21]} 28. Rh7+ {[%clk 0:01:46]}  Kg8 {[%clk 0:01:21]} 29. Rg7+ {[%clk 0:01:47]}  Kh8 {[%clk 0:01:21]} 1/2-1/2


[Site "https://www.chess.com"]

[Event "Titled Tuesday Blitz January 31 Early 2023"]
[White "Azarov, Sergei"]
[Black "Bethke, Richard"]
[WhiteFideId "13501470"]
[BlackFideId "12959243"]
[WhiteElo "2582"]
[BlackElo "2382"]
[Result "1-0"]
[Round "04"]
[TimeControl "180+2"]
[Date "2023.01.31"]
[WhiteClock "0:00:08"]
[BlackClock "0:00:02"]

1. e4 {[%clk 0:03:00]}  c5 {[%clk 0:02:58]} 2. Nf3 {[%clk 0:03:00]}  d6 {[%clk 0:02:58]} 3. d4 {[%clk 0:03:00]}  cxd4 {[%clk 0:02:59]} 4. Nxd4 {[%clk 0:03:01]}  Nf6 {[%clk 0:02:59]} 5. Nc3 {[%clk 0:03:01]}  a6 {[%clk 0:02:59]} 6. Be2 {[%clk 0:03:02]}  e5 {[%clk 0:02:58]} 7. Nb3 {[%clk 0:03:01]}  Be7 {[%clk 0:02:56]} 8. O-O {[%clk 0:03:01]}  O-O {[%clk 0:02:56]} 9. Kh1 {[%clk 0:03:02]}  Nc6 {[%clk 0:02:54]} 10. f4 {[%clk 0:02:59]}  b5 {[%clk 0:02:51]} 11. Bf3 {[%clk 0:02:53]}  Be6 {[%clk 0:02:44]} 12. Nd5 {[%clk 0:02:46]}  Rc8 {[%clk 0:02:41]} 13. a4 {[%clk 0:02:37]}  Bxd5 {[%clk 0:01:44]} 14. exd5 {[%clk 0:02:36]}  Nb4 {[%clk 0:01:45]} 15. c3 {[%clk 0:02:10]}  e4 {[%clk 0:01:44]} 16. Be2 {[%clk 0:02:02]}  Nbxd5 {[%clk 0:01:38]} 17. axb5 {[%clk 0:02:02]}  axb5 {[%clk 0:01:38]} 18. Bxb5 {[%clk 0:02:01]}  Qb6 {[%clk 0:01:35]} 19. Nd4 {[%clk 0:01:57]}  Ra8 {[%clk 0:01:32]} 20. Rxa8 {[%clk 0:01:45]}  Rxa8 {[%clk 0:01:33]} 21. Bc6 {[%clk 0:01:41]}  Ra1 {[%clk 0:00:47]} 22. Qe2 {[%clk 0:01:29]}  e3 {[%clk 0:00:30]} 23. Kg1 {[%clk 0:01:10]}  Bf8 {[%clk 0:00:21]} 24. g3 {[%clk 0:00:47]}  Ne7 {[%clk 0:00:11]} 25. Bf3 {[%clk 0:00:43]}  Ned5 {[%clk 0:00:05]} 26. Qc4 {[%clk 0:00:39]}  e2 {[%clk 0:00:01]} 27. Qxe2 {[%clk 0:00:35]}  h6 {[%clk 0:00:01]} 28. Kg2 {[%clk 0:00:31]}  Rb1 {[%clk 0:00:01]} 29. Qd3 {[%clk 0:00:28]}  Ra1 {[%clk 0:00:01]} 30. Nf5 {[%clk 0:00:19]}  Nc7 {[%clk 0:00:02]} 31. Be3 {[%clk 0:00:17]}  Qxb2+ {[%clk 0:00:01]} 32. Rf2 {[%clk 0:00:17]}  Qb3 {[%clk 0:00:01]} 33. Bd4 {[%clk 0:00:15]}  Ne6 {[%clk 0:00:02]} 34. Bxf6 {[%clk 0:00:13]}  gxf6 {[%clk 0:00:02]} 35. Bd5 {[%clk 0:00:12]}  Qb1 {[%clk 0:00:02]} 36. Qxb1 {[%clk 0:00:11]}  Rxb1 {[%clk 0:00:03]} 37. Re2 {[%clk 0:00:11]}  Rc1 {[%clk 0:00:03]} 38. c4 {[%clk 0:00:10]}  Rc3 {[%clk 0:00:02]} 39. h4 {[%clk 0:00:08]}  Nc7 {[%clk 0:00:02]} 40. Re8 {[%clk 0:00:07]}  Nxd5 {[%clk 0:00:03]} 41. cxd5 {[%clk 0:00:07]}  Rd3 {[%clk 0:00:03]} 42. Nxh6+ {[%clk 0:00:07]}  Kh7 {[%clk 0:00:03]} 43. Rxf8 {[%clk 0:00:07]}  Kxh6 {[%clk 0:00:03]} 44. Rxf7 {[%clk 0:00:07]}  Kg6 {[%clk 0:00:03]} 45. Rd7 {[%clk 0:00:07]}  Rxd5 {[%clk 0:00:04]} 46. g4 {[%clk 0:00:07]}  Rd3 {[%clk 0:00:04]} 47. f5+ {[%clk 0:00:06]}  Kh6 {[%clk 0:00:04]} 48. Rf7 {[%clk 0:00:06]}  d5 {[%clk 0:00:05]} 49. Rxf6+ {[%clk 0:00:07]}  Kg7 {[%clk 0:00:05]} 50. Rg6+ {[%clk 0:00:07]}  Kh7 {[%clk 0:00:03]} 51. Rd6 {[%clk 0:00:07]}  d4 {[%clk 0:00:04]} 52. g5 {[%clk 0:00:07]}  Rd1 {[%clk 0:00:03]} 53. Rd7+ {[%clk 0:00:07]}  Kg8 {[%clk 0:00:03]} 54. f6 {[%clk 0:00:07]}  Rd2+ {[%clk 0:00:01]} 55. Kg3 {[%clk 0:00:07]}  Rd1 {[%clk 0:00:02]} 56. Kg2 {[%clk 0:00:07]}  Rd2+ {[%clk 0:00:02]} 57. Kh3 {[%clk 0:00:07]}  Rd1 {[%clk 0:00:02]} 58. g6 {[%clk 0:00:07]}  Rh1+ {[%clk 0:00:01]} 59. Kg4 {[%clk 0:00:08]}  Rg1+ {[%clk 0:00:02]} 60. Kh5 {[%clk 0:00:08]}  Re1 {[%clk 0:00:02]} 61. Rd8+ {[%clk 0:00:08]} 1-0


[Site "https://www.chess.com"]

[Event "Titled Tuesday Blitz January 31 Early 2023"]
[White "Garv Gaur"]
[Black "Preotu, Razvan"]
[WhiteFideId "45030839"]
[BlackFideId "2613280"]
[WhiteElo "2006"]
[BlackElo "2475"]
[Result "0-1"]
[Round "04"]
[TimeControl "180+2"]
[Date "2023.01.31"]
[WhiteClock "0:00:04"]
[BlackClock "0:00:04"]

1. Nf3 {[%clk 0:03:00]}  c5 {[%clk 0:02:57]} 2. g3 {[%clk 0:03:00]}  Nc6 {[%clk 0:02:58]} 3. Bg2 {[%clk 0:02:59]}  e5 {[%clk 0:02:58]} 4. d3 {[%clk 0:03:00]}  d5 {[%clk 0:02:59]} 5. O-O {[%clk 0:02:59]}  Be7 {[%clk 0:03:00]} 6. Nbd2 {[%clk 0:02:59]}  Be6 {[%clk 0:02:58]} 7. e4 {[%clk 0:02:59]}  d4 {[%clk 0:02:58]} 8. a4 {[%clk 0:02:58]}  h5 {[%clk 0:02:48]} 9. Ne1 {[%clk 0:02:40]}  h4 {[%clk 0:02:46]} 10. f4 {[%clk 0:02:39]}  hxg3 {[%clk 0:02:46]} 11. hxg3 {[%clk 0:02:39]}  Bh3 {[%clk 0:02:18]} 12. Ndf3 {[%clk 0:02:32]}  Bxg2 {[%clk 0:02:15]} 13. Nxg2 {[%clk 0:02:32]}  Qd7 {[%clk 0:02:14]} 14. f5 {[%clk 0:02:12]}  Nf6 {[%clk 0:02:09]} 15. Bg5 {[%clk 0:02:11]}  Ng4 {[%clk 0:02:01]} 16. Bxe7 {[%clk 0:02:10]}  Kxe7 {[%clk 0:01:43]} 17. Nfh4 {[%clk 0:02:07]}  Nf6 {[%clk 0:01:39]} 18. b3 {[%clk 0:02:02]}  Rag8 {[%clk 0:01:29]} 19. Qf3 {[%clk 0:02:01]}  Kd8 {[%clk 0:01:27]} 20. Kf2 {[%clk 0:01:56]}  Kc8 {[%clk 0:01:25]} 21. Rh1 {[%clk 0:01:55]}  g5 {[%clk 0:01:22]} 22. fxg6 {[%clk 0:01:50]}  Ng4+ {[%clk 0:01:23]} 23. Ke2 {[%clk 0:01:47]}  fxg6 {[%clk 0:01:23]} 24. Raf1 {[%clk 0:01:44]}  a5 {[%clk 0:00:35]} 25. Kd1 {[%clk 0:00:53]}  Kb8 {[%clk 0:00:34]} 26. Ke2 {[%clk 0:00:47]}  Ka7 {[%clk 0:00:35]} 27. Kd1 {[%clk 0:00:47]}  Nb4 {[%clk 0:00:28]} 28. Kc1 {[%clk 0:00:43]}  c4 {[%clk 0:00:24]} 29. dxc4 {[%clk 0:00:39]}  d3 {[%clk 0:00:23]} 30. cxd3 {[%clk 0:00:35]}  Rf8 {[%clk 0:00:20]} 31. Qe2 {[%clk 0:00:25]}  Nf2 {[%clk 0:00:18]} 32. Ne1 {[%clk 0:00:17]}  Qd4 {[%clk 0:00:16]} 33. Nhf3 {[%clk 0:00:07]}  Qa1+ {[%clk 0:00:14]} 34. Kd2 {[%clk 0:00:07]}  Nxh1 {[%clk 0:00:08]} 35. Ke3 {[%clk 0:00:03]}  Rd8 {[%clk 0:00:06]} 36. Rxh1 {[%clk 0:00:02]}  Rxh1 {[%clk 0:00:05]} 37. Nd2 {[%clk 0:00:02]}  Qd4+ {[%clk 0:00:04]} 38. Kf3 {[%clk 0:00:03]}  Nxd3 {[%clk 0:00:05]} 39. Nc2 {[%clk 0:00:02]}  Rf8+ {[%clk 0:00:04]} 40. Kg4 {[%clk 0:00:03]}  Nf2+ {[%clk 0:00:04]} 41. Kg5 {[%clk 0:00:03]}  Qd8+ {[%clk 0:00:05]} 42. Kxg6 {[%clk 0:00:04]}  Qf6# {[%clk 0:00:04]} 0-1


[Site "https://www.chess.com"]

[Event "Titled Tuesday Blitz January 31 Early 2023"]
[White "Shipov, Sergei"]
[Black "Cella, Glaucio Dalla Cortt"]
[WhiteFideId "4113624"]
[BlackFideId "2119455"]
[WhiteElo "2541"]
[BlackElo "1894"]
[Result "1/2-1/2"]
[Round "04"]
[TimeControl "180+2"]
[Date "2023.01.31"]
[WhiteClock "0:00:30"]
[BlackClock "0:00:37"]

1. d4 {[%clk 0:03:00]}  Nf6 {[%clk 0:02:59]} 2. c4 {[%clk 0:03:00]}  e5 {[%clk 0:03:00]} 3. dxe5 {[%clk 0:03:00]}  Ng4 {[%clk 0:02:59]} 4. e3 {[%clk 0:03:00]}  Nxe5 {[%clk 0:02:57]} 5. Nc3 {[%clk 0:03:01]}  Nbc6 {[%clk 0:02:55]} 6. f4 {[%clk 0:02:58]}  Ng6 {[%clk 0:02:53]} 7. a3 {[%clk 0:02:58]}  a5 {[%clk 0:02:50]} 8. Bd3 {[%clk 0:02:58]}  Bc5 {[%clk 0:02:49]} 9. Qh5 {[%clk 0:02:57]}  d6 {[%clk 0:02:19]} 10. Nf3 {[%clk 0:02:56]}  Qe7 {[%clk 0:02:15]} 11. Nd5 {[%clk 0:02:55]}  Qd7 {[%clk 0:02:11]} 12. O-O {[%clk 0:02:51]}  Nce7 {[%clk 0:02:09]} 13. Kh1 {[%clk 0:02:38]}  Nxd5 {[%clk 0:02:09]} 14. cxd5 {[%clk 0:02:38]}  Qg4 {[%clk 0:02:07]} 15. Qxg4 {[%clk 0:02:36]}  Bxg4 {[%clk 0:02:07]} 16. Ng5 {[%clk 0:02:28]}  O-O {[%clk 0:02:01]} 17. Bd2 {[%clk 0:02:21]}  h6 {[%clk 0:01:59]} 18. Ne4 {[%clk 0:02:20]}  Bb6 {[%clk 0:01:57]} 19. Nc3 {[%clk 0:02:15]}  Bd7 {[%clk 0:01:47]} 20. b3 {[%clk 0:02:11]}  Rfe8 {[%clk 0:01:47]} 21. Rfe1 {[%clk 0:02:08]}  Ne7 {[%clk 0:01:40]} 22. e4 {[%clk 0:02:07]}  c6 {[%clk 0:01:38]} 23. dxc6 {[%clk 0:02:01]}  bxc6 {[%clk 0:01:39]} 24. Rad1 {[%clk 0:01:56]}  Rab8 {[%clk 0:01:39]} 25. Na4 {[%clk 0:01:53]}  Bf2 {[%clk 0:01:32]} 26. Rf1 {[%clk 0:01:51]}  Ba7 {[%clk 0:01:33]} 27. Bc2 {[%clk 0:01:50]}  Be6 {[%clk 0:01:24]} 28. b4 {[%clk 0:01:31]}  axb4 {[%clk 0:01:17]} 29. axb4 {[%clk 0:01:32]}  c5 {[%clk 0:01:18]} 30. bxc5 {[%clk 0:01:27]}  dxc5 {[%clk 0:01:17]} 31. Be3 {[%clk 0:01:26]}  Nc6 {[%clk 0:01:15]} 32. Bxc5 {[%clk 0:01:25]}  Bxc5 {[%clk 0:01:04]} 33. Nxc5 {[%clk 0:01:25]}  Bc4 {[%clk 0:01:05]} 34. Rfe1 {[%clk 0:01:25]}  Nb4 {[%clk 0:00:59]} 35. Ba4 {[%clk 0:01:21]}  Bb5 {[%clk 0:00:55]} 36. Bxb5 {[%clk 0:01:18]}  Rxb5 {[%clk 0:00:56]} 37. Na4 {[%clk 0:01:05]}  Nd3 {[%clk 0:00:38]} 38. Rxd3 {[%clk 0:01:03]}  Rxe4 {[%clk 0:00:36]} 39. Rd8+ {[%clk 0:00:36]}  Kh7 {[%clk 0:00:36]} 40. Rf1 {[%clk 0:00:35]}  Rxa4 {[%clk 0:00:36]} 41. Rd7 {[%clk 0:00:35]}  Rf5 {[%clk 0:00:35]} 42. g3 {[%clk 0:00:34]}  g5 {[%clk 0:00:34]} 43. Kg2 {[%clk 0:00:31]}  gxf4 {[%clk 0:00:34]} 44. Rxf4 {[%clk 0:00:31]}  Raxf4 {[%clk 0:00:34]} 45. gxf4 {[%clk 0:00:31]}  Rxf4 {[%clk 0:00:35]} 46. Kg3 {[%clk 0:00:31]}  Rf6 {[%clk 0:00:35]} 47. h4 {[%clk 0:00:30]}  Kg7 {[%clk 0:00:36]} 48. Rd5 {[%clk 0:00:30]}  Kg6 {[%clk 0:00:36]} 49. Kg4 {[%clk 0:00:29]}  h5+ {[%clk 0:00:35]} 50. Rxh5 {[%clk 0:00:28]}  Rf4+ {[%clk 0:00:35]} 51. Kxf4 {[%clk 0:00:28]}  Kxh5 {[%clk 0:00:36]} 52. Kg3 {[%clk 0:00:28]}  f5 {[%clk 0:00:37]} 53. Kf4 {[%clk 0:00:29]}  Kxh4 {[%clk 0:00:37]} 54. Kxf5 {[%clk 0:00:30]} 1/2-1/2


[Site "https://www.chess.com"]